[Event "Titled Tuesday Blitz April 25 Late 2023"]
[White "Erzhanov, Arman"]
[Black "Rosenberg, Evan S"]
[WhiteFideId "4138821"]
[BlackFideId "2019299"]
[WhiteElo "2138"]
[BlackElo "1956"]
[Result "1-0"]
[Round "05"]
[TimeControl "180+2"]
[Date "2023.04.25"]
[WhiteClock "0:00:09"]
[BlackClock "0:00:01"]

1. e4 {[%clk 0:03:00]}  e5 {[%clk 0:03:00]} 2. Nf3 {[%clk 0:03:00]}  Nc6 {[%clk 0:03:00]} 3. Bc4 {[%clk 0:02:59]}  Nf6 {[%clk 0:03:00]} 4. d4 {[%clk 0:02:59]}  exd4 {[%clk 0:03:00]} 5. e5 {[%clk 0:03:00]}  d5 {[%clk 0:03:00]} 6. Bb5 {[%clk 0:03:00]}  Nd7 {[%clk 0:03:01]} 7. O-O {[%clk 0:02:59]}  Be7 {[%clk 0:03:01]} 8. Bxc6 {[%clk 0:02:58]}  bxc6 {[%clk 0:03:02]} 9. Nxd4 {[%clk 0:02:58]}  Nb8 {[%clk 0:03:03]} 10. Qf3 {[%clk 0:02:58]}  O-O {[%clk 0:03:01]} 11. Nf5 {[%clk 0:02:56]}  Bxf5 {[%clk 0:03:00]} 12. Qxf5 {[%clk 0:02:56]}  a5 {[%clk 0:03:00]} 13. Nd2 {[%clk 0:02:53]}  Ra6 {[%clk 0:03:00]} 14. Nf3 {[%clk 0:02:53]}  c5 {[%clk 0:03:00]} 15. Rd1 {[%clk 0:02:52]}  d4 {[%clk 0:02:58]} 16. c3 {[%clk 0:02:52]}  Nc6 {[%clk 0:02:48]} 17. Be3 {[%clk 0:02:35]}  g6 {[%clk 0:02:39]} 18. Qe4 {[%clk 0:02:32]}  Re8 {[%clk 0:02:37]} 19. cxd4 {[%clk 0:02:31]}  cxd4 {[%clk 0:02:38]} 20. Nxd4 {[%clk 0:02:30]}  Nxd4 {[%clk 0:02:38]} 21. Rxd4 {[%clk 0:02:29]}  Qb8 {[%clk 0:02:35]} 22. b3 {[%clk 0:02:23]}  Re6 {[%clk 0:02:16]} 23. f4 {[%clk 0:02:22]}  Bc5 {[%clk 0:02:13]} 24. Rd5 {[%clk 0:02:15]}  Bxe3+ {[%clk 0:02:11]} 25. Qxe3 {[%clk 0:02:16]}  a4 {[%clk 0:02:07]} 26. bxa4 {[%clk 0:02:08]}  Qb2 {[%clk 0:02:06]} 27. Qd4 {[%clk 0:02:03]}  Qe2 {[%clk 0:01:44]} 28. Rd8 {[%clk 0:01:42]}  Rxd8 {[%clk 0:01:43]} 29. Qxd8+ {[%clk 0:01:41]}  Kg7 {[%clk 0:01:43]} 30. Qd4 {[%clk 0:01:27]}  h5 {[%clk 0:01:26]} 31. a5 {[%clk 0:01:22]}  h4 {[%clk 0:01:25]} 32. h3 {[%clk 0:01:21]}  Kg8 {[%clk 0:01:00]} 33. Rf1 {[%clk 0:01:13]}  Qxa2 {[%clk 0:00:58]} 34. Qd8+ {[%clk 0:01:13]}  Kg7 {[%clk 0:00:57]} 35. Qxc7 {[%clk 0:01:14]}  Ra6 {[%clk 0:00:49]} 36. f5 {[%clk 0:01:11]}  Qxa5 {[%clk 0:00:42]} 37. Qe7 {[%clk 0:00:56]}  Qb6+ {[%clk 0:00:33]} 38. Kh2 {[%clk 0:00:53]}  Ra7 {[%clk 0:00:34]} 39. Qxh4 {[%clk 0:00:51]}  gxf5 {[%clk 0:00:30]} 40. Rxf5 {[%clk 0:00:47]}  Ra1 {[%clk 0:00:30]} 41. Rg5+ {[%clk 0:00:32]}  Kf8 {[%clk 0:00:29]} 42. Qh8+ {[%clk 0:00:31]}  Ke7 {[%clk 0:00:30]} 43. Rg4 {[%clk 0:00:19]}  Qg1+ {[%clk 0:00:29]} 44. Kg3 {[%clk 0:00:19]}  Ra3+ {[%clk 0:00:28]} 45. Kh4 {[%clk 0:00:20]}  Qf2+ {[%clk 0:00:28]} 46. g3 {[%clk 0:00:16]}  Ra6 {[%clk 0:00:24]} 47. Qh5 {[%clk 0:00:15]}  Qe3 {[%clk 0:00:13]} 48. Qg5+ {[%clk 0:00:15]}  Qxg5+ {[%clk 0:00:14]} 49. Rxg5 {[%clk 0:00:15]}  Ra4+ {[%clk 0:00:13]} 50. Kh5 {[%clk 0:00:13]}  Ke6 {[%clk 0:00:13]} 51. h4 {[%clk 0:00:14]}  Ra8 {[%clk 0:00:12]} 52. Kh6 {[%clk 0:00:12]}  Rh8+ {[%clk 0:00:10]} 53. Kg7 {[%clk 0:00:12]}  Rc8 {[%clk 0:00:09]} 54. h5 {[%clk 0:00:13]}  Rc7 {[%clk 0:00:07]} 55. Kg8 {[%clk 0:00:08]}  Rc8+ {[%clk 0:00:07]} 56. Kh7 {[%clk 0:00:08]}  Rc7 {[%clk 0:00:07]} 57. Rg7 {[%clk 0:00:08]}  Kxe5 {[%clk 0:00:07]} 58. h6 {[%clk 0:00:08]}  Kf6 {[%clk 0:00:07]} 59. g4 {[%clk 0:00:07]}  Rc8 {[%clk 0:00:05]} 60. g5+ {[%clk 0:00:07]}  Ke6 {[%clk 0:00:05]} 61. Rg8 {[%clk 0:00:08]}  Rc5 {[%clk 0:00:03]} 62. Kh8 {[%clk 0:00:07]}  f6 {[%clk 0:00:02]} 63. g6 {[%clk 0:00:07]}  Ke7 {[%clk 0:00:01]} 64. h7 {[%clk 0:00:07]}  Rh5 {[%clk 0:00:01]} 65. g7 {[%clk 0:00:07]}  Kf7 {[%clk 0:00:01]} 66. Rf8+ {[%clk 0:00:06]}  Ke7 {[%clk 0:00:01]} 67. g8=Q {[%clk 0:00:07]}  Rxh7+ {[%clk 0:00:01]} 68. Qxh7+ {[%clk 0:00:07]}  Kxf8 {[%clk 0:00:02]} 69. Qb7 {[%clk 0:00:07]}  f5 {[%clk 0:00:02]} 70. Kh7 {[%clk 0:00:07]}  f4 {[%clk 0:00:02]} 71. Kg6 {[%clk 0:00:08]}  f3 {[%clk 0:00:02]} 72. Kf6 {[%clk 0:00:08]}  f2 {[%clk 0:00:01]} 73. Qf7# {[%clk 0:00:09]} 1-0


[Site "https://www.chess.com"]

[Event "Titled Tuesday Blitz April 25 Late 2023"]
[White "De Souza, Cristiano Gomes"]
[Black "Karas, Marek"]
[WhiteFideId "2151758"]
[BlackFideId "14928558"]
[WhiteElo "2068"]
[BlackElo "2233"]
[Result "0-1"]
[Round "05"]
[TimeControl "180+2"]
[Date "2023.04.25"]
[WhiteClock "0:00:05"]
[BlackClock "0:00:06"]

1. d4 {[%clk 0:03:00]}  Nf6 {[%clk 0:02:59]} 2. c4 {[%clk 0:03:00]}  c5 {[%clk 0:02:59]} 3. d5 {[%clk 0:03:00]}  b5 {[%clk 0:02:59]} 4. cxb5 {[%clk 0:03:00]}  a6 {[%clk 0:02:59]} 5. bxa6 {[%clk 0:03:01]}  e6 {[%clk 0:03:00]} 6. dxe6 {[%clk 0:02:59]}  fxe6 {[%clk 0:03:00]} 7. Nc3 {[%clk 0:03:00]}  Bxa6 {[%clk 0:02:59]} 8. g3 {[%clk 0:03:00]}  d5 {[%clk 0:02:59]} 9. Bh3 {[%clk 0:03:01]}  Be7 {[%clk 0:02:57]} 10. Bxe6 {[%clk 0:02:58]}  d4 {[%clk 0:02:56]} 11. Nb1 {[%clk 0:02:35]}  Qb6 {[%clk 0:02:54]} 12. Bh3 {[%clk 0:02:28]}  Bb7 {[%clk 0:02:51]} 13. Nf3 {[%clk 0:02:27]}  O-O {[%clk 0:02:45]} 14. O-O {[%clk 0:02:26]}  Nc6 {[%clk 0:02:25]} 15. Nbd2 {[%clk 0:02:23]}  Nb4 {[%clk 0:02:18]} 16. a3 {[%clk 0:02:10]}  Kh8 {[%clk 0:02:00]} 17. Nc4 {[%clk 0:01:59]}  Qa6 {[%clk 0:01:56]} 18. Nce5 {[%clk 0:01:55]}  Nc6 {[%clk 0:01:51]} 19. Qb3 {[%clk 0:01:42]}  Nxe5 {[%clk 0:01:47]} 20. Nxe5 {[%clk 0:01:39]}  Bd5 {[%clk 0:01:48]} 21. Qc2 {[%clk 0:01:33]}  c4 {[%clk 0:01:43]} 22. Bg5 {[%clk 0:01:17]}  Rac8 {[%clk 0:01:28]} 23. Bxc8 {[%clk 0:01:03]}  Qxc8 {[%clk 0:01:29]} 24. Rac1 {[%clk 0:00:52]}  Qh3 {[%clk 0:01:26]} 25. f3 {[%clk 0:00:44]}  Bd6 {[%clk 0:01:11]} 26. Bf4 {[%clk 0:00:10]}  Nh5 {[%clk 0:01:06]} 27. Nxc4 {[%clk 0:00:08]}  Nxf4 {[%clk 0:01:01]} 28. Rf2 {[%clk 0:00:08]}  Bxc4 {[%clk 0:00:51]} 29. Qxc4 {[%clk 0:00:08]}  Ng6 {[%clk 0:00:49]} 30. Qxd4 {[%clk 0:00:07]}  Be5 {[%clk 0:00:44]} 31. Qc5 {[%clk 0:00:07]}  Qd7 {[%clk 0:00:38]} 32. Kg2 {[%clk 0:00:06]}  Bd4 {[%clk 0:00:35]} 33. Qc2 {[%clk 0:00:04]}  Bxf2 {[%clk 0:00:35]} 34. Kxf2 {[%clk 0:00:04]}  Qh3 {[%clk 0:00:34]} 35. Kg1 {[%clk 0:00:04]}  Qe6 {[%clk 0:00:31]} 36. Rd1 {[%clk 0:00:03]}  Qe3+ {[%clk 0:00:29]} 37. Kg2 {[%clk 0:00:02]}  Re8 {[%clk 0:00:26]} 38. Rd2 {[%clk 0:00:02]}  Qg5 {[%clk 0:00:25]} 39. Qd1 {[%clk 0:00:02]}  Nf4+ {[%clk 0:00:24]} 40. Kh1 {[%clk 0:00:02]}  Nh3 {[%clk 0:00:22]} 41. e4 {[%clk 0:00:02]}  Qe3 {[%clk 0:00:19]} 42. Kg2 {[%clk 0:00:03]}  Ng5 {[%clk 0:00:12]} 43. h4 {[%clk 0:00:02]}  Nf7 {[%clk 0:00:10]} 44. Rd3 {[%clk 0:00:02]}  Qb6 {[%clk 0:00:09]} 45. Qd2 {[%clk 0:00:02]}  h6 {[%clk 0:00:09]} 46. b4 {[%clk 0:00:02]}  Ne5 {[%clk 0:00:09]} 47. Rd6 {[%clk 0:00:01]}  Qb5 {[%clk 0:00:05]} 48. Qd4 {[%clk 0:00:01]}  Qe2+ {[%clk 0:00:05]} 49. Qf2 {[%clk 0:00:01]}  Qc4 {[%clk 0:00:03]} 50. Qd4 {[%clk 0:00:01]}  Qa2+ {[%clk 0:00:03]} 51. Qf2 {[%clk 0:00:01]}  Qxa3 {[%clk 0:00:03]} 52. Rd5 {[%clk 0:00:01]}  Qxb4 {[%clk 0:00:03]} 53. Qd4 {[%clk 0:00:01]}  Qxd4 {[%clk 0:00:02]} 54. Rxd4 {[%clk 0:00:01]}  Ng6 {[%clk 0:00:02]} 55. f4 {[%clk 0:00:01]}  Nf8 {[%clk 0:00:03]} 56. e5 {[%clk 0:00:02]}  Kg8 {[%clk 0:00:03]} 57. Rd6 {[%clk 0:00:02]}  h5 {[%clk 0:00:03]} 58. Kf3 {[%clk 0:00:03]}  g6 {[%clk 0:00:03]} 59. g4 {[%clk 0:00:03]}  hxg4+ {[%clk 0:00:04]} 60. Kxg4 {[%clk 0:00:03]}  Kf7 {[%clk 0:00:04]} 61. Kg5 {[%clk 0:00:04]}  Ne6+ {[%clk 0:00:04]} 62. Kg4 {[%clk 0:00:03]}  Ng7 {[%clk 0:00:04]} 63. f5 {[%clk 0:00:03]}  Nxf5 {[%clk 0:00:04]} 64. Rf6+ {[%clk 0:00:03]}  Kg7 {[%clk 0:00:05]} 65. Rxf5 {[%clk 0:00:04]}  gxf5+ {[%clk 0:00:05]} 66. Kxf5 {[%clk 0:00:04]}  Rh8 {[%clk 0:00:04]} 67. Ke6 {[%clk 0:00:04]}  Rxh4 {[%clk 0:00:04]} 68. Kd7 {[%clk 0:00:04]}  Kf8 {[%clk 0:00:04]} 69. e6 {[%clk 0:00:05]}  Rd4+ {[%clk 0:00:04]} 70. Kc6 {[%clk 0:00:05]}  Ke7 {[%clk 0:00:05]} 71. Kc5 {[%clk 0:00:05]}  Rd6 {[%clk 0:00:06]} 0-1


[Site "https://www.chess.com"]

[Event "Titled Tuesday Blitz April 25 Late 2023"]
[White "Harish, Neeraj"]
[Black "Lorenzo De La Riva, Lazaro"]
[WhiteFideId "30958130"]
[BlackFideId "2268809"]
[WhiteElo "1965"]
[BlackElo "2294"]
[Result "1-0"]
[Round "05"]
[TimeControl "180+2"]
[Date "2023.04.25"]
[WhiteClock "0:00:03"]
[BlackClock "0:00:01"]

1. e4 {[%clk 0:03:00]}  c6 {[%clk 0:02:55]} 2. d4 {[%clk 0:03:00]}  d5 {[%clk 0:02:56]} 3. e5 {[%clk 0:02:58]}  c5 {[%clk 0:02:55]} 4. Nf3 {[%clk 0:02:56]}  cxd4 {[%clk 0:02:53]} 5. Qxd4 {[%clk 0:02:57]}  Nc6 {[%clk 0:02:52]} 6. Qa4 {[%clk 0:02:55]}  e6 {[%clk 0:02:45]} 7. Bb5 {[%clk 0:02:50]}  Bd7 {[%clk 0:02:45]} 8. O-O {[%clk 0:02:44]}  Nge7 {[%clk 0:02:42]} 9. Qg4 {[%clk 0:02:33]}  Ng6 {[%clk 0:02:40]} 10. Bxc6 {[%clk 0:02:30]}  bxc6 {[%clk 0:02:38]} 11. h4 {[%clk 0:02:24]}  h5 {[%clk 0:02:37]} 12. Qg3 {[%clk 0:02:23]}  Ne7 {[%clk 0:02:32]} 13. Bg5 {[%clk 0:02:17]}  Nf5 {[%clk 0:02:31]} 14. Qf4 {[%clk 0:02:12]}  Qb6 {[%clk 0:02:29]} 15. b3 {[%clk 0:02:00]}  Bc5 {[%clk 0:02:09]} 16. Nbd2 {[%clk 0:01:50]}  a5 {[%clk 0:01:54]} 17. c4 {[%clk 0:01:49]}  a4 {[%clk 0:01:51]} 18. cxd5 {[%clk 0:01:33]}  cxd5 {[%clk 0:01:49]} 19. Rab1 {[%clk 0:01:26]}  Qb4 {[%clk 0:01:42]} 20. bxa4 {[%clk 0:01:19]}  Qxf4 {[%clk 0:01:39]} 21. Bxf4 {[%clk 0:01:19]}  O-O {[%clk 0:01:38]} 22. Nb3 {[%clk 0:01:14]}  Bb4 {[%clk 0:01:37]} 23. a5 {[%clk 0:01:06]}  Bb5 {[%clk 0:01:36]} 24. Rfc1 {[%clk 0:01:04]}  Bc4 {[%clk 0:01:36]} 25. Nfd4 {[%clk 0:00:59]}  Nxd4 {[%clk 0:01:31]} 26. Nxd4 {[%clk 0:00:58]}  Bxa5 {[%clk 0:01:31]} 27. Nb3 {[%clk 0:00:49]}  Bd8 {[%clk 0:01:28]} 28. g3 {[%clk 0:00:47]}  Rxa2 {[%clk 0:01:26]} 29. Be3 {[%clk 0:00:45]}  f6 {[%clk 0:01:18]} 30. exf6 {[%clk 0:00:44]}  Bxf6 {[%clk 0:01:17]} 31. Nc5 {[%clk 0:00:40]}  d4 {[%clk 0:00:57]} 32. Rxc4 {[%clk 0:00:25]}  dxe3 {[%clk 0:00:56]} 33. fxe3 {[%clk 0:00:26]}  Be5 {[%clk 0:00:55]} 34. Ne4 {[%clk 0:00:19]}  Rf3 {[%clk 0:00:32]} 35. Rf1 {[%clk 0:00:19]}  Rxf1+ {[%clk 0:00:30]} 36. Kxf1 {[%clk 0:00:20]}  Kf7 {[%clk 0:00:24]} 37. Rb4 {[%clk 0:00:14]}  Kg6 {[%clk 0:00:21]} 38. Rb6 {[%clk 0:00:08]}  Kf5 {[%clk 0:00:19]} 39. Ng5 {[%clk 0:00:08]}  Bxg3 {[%clk 0:00:18]} 40. Nxe6 {[%clk 0:00:09]}  Kg4 {[%clk 0:00:09]} 41. Nxg7 {[%clk 0:00:06]}  Kxh4 {[%clk 0:00:09]} 42. Nf5+ {[%clk 0:00:05]}  Kg4 {[%clk 0:00:09]} 43. Nxg3 {[%clk 0:00:06]}  Kxg3 {[%clk 0:00:09]} 44. e4 {[%clk 0:00:05]}  Ra3 {[%clk 0:00:04]} 45. e5 {[%clk 0:00:04]}  h4 {[%clk 0:00:02]} 46. e6 {[%clk 0:00:02]}  h3 {[%clk 0:00:01]} 47. e7 {[%clk 0:00:03]} 1-0


[Site "https://www.chess.com"]

[Event "Titled Tuesday Blitz April 25 Late 2023"]
[White "Coelho, Ramyres Santana"]
[Black "Lopez Gracia, Fernando"]
[WhiteFideId "2120690"]
[BlackFideId "2207184"]
[WhiteElo "1888"]
[BlackElo "2255"]
[Result "0-1"]
[Round "05"]
[TimeControl "180+2"]
[Date "2023.04.25"]
[WhiteClock "0:00:16"]
[BlackClock "0:00:11"]

1. e4 {[%clk 0:03:00]}  e5 {[%clk 0:02:59]} 2. Nf3 {[%clk 0:03:00]}  Nc6 {[%clk 0:02:59]} 3. d4 {[%clk 0:02:58]}  exd4 {[%clk 0:02:58]} 4. Bc4 {[%clk 0:02:58]}  Nf6 {[%clk 0:02:57]} 5. e5 {[%clk 0:02:58]}  d5 {[%clk 0:02:58]} 6. Bb5 {[%clk 0:02:59]}  Ne4 {[%clk 0:02:59]} 7. Nxd4 {[%clk 0:02:59]}  Bc5 {[%clk 0:02:59]} 8. Nxc6 {[%clk 0:02:59]}  Bxf2+ {[%clk 0:02:34]} 9. Kf1 {[%clk 0:02:59]}  bxc6 {[%clk 0:02:33]} 10. Bxc6+ {[%clk 0:02:58]}  Kf8 {[%clk 0:02:11]} 11. Qd3 {[%clk 0:02:56]}  Qh4 {[%clk 0:01:45]} 12. Bxa8 {[%clk 0:02:40]}  Bb6 {[%clk 0:01:17]} 13. Be3 {[%clk 0:02:25]}  Ba6 {[%clk 0:01:16]} 14. Qxa6 {[%clk 0:02:18]}  Bxe3 {[%clk 0:01:15]} 15. Qc8+ {[%clk 0:02:09]}  Ke7 {[%clk 0:01:16]} 16. Qxc7+ {[%clk 0:02:08]}  Ke6 {[%clk 0:01:11]} 17. Qc6+ {[%clk 0:02:00]}  Ke7 {[%clk 0:01:06]} 18. Qc7+ {[%clk 0:01:44]}  Ke6 {[%clk 0:01:06]} 19. Bxd5+ {[%clk 0:01:43]}  Kxd5 {[%clk 0:01:02]} 20. Nc3+ {[%clk 0:01:38]}  Nxc3 {[%clk 0:01:00]} 21. Qd6+ {[%clk 0:01:37]}  Ke4 {[%clk 0:00:48]} 22. Qd3+ {[%clk 0:01:33]}  Kxe5 {[%clk 0:00:48]} 23. Qxe3+ {[%clk 0:01:28]}  Ne4 {[%clk 0:00:49]} 24. Re1 {[%clk 0:01:23]}  Rd8 {[%clk 0:00:45]} 25. Qg3+ {[%clk 0:01:10]}  Qf4+ {[%clk 0:00:39]} 26. Qxf4+ {[%clk 0:01:08]}  Kxf4 {[%clk 0:00:40]} 27. Rg1 {[%clk 0:00:34]}  Rd2 {[%clk 0:00:39]} 28. Re2 {[%clk 0:00:19]}  Rd1+ {[%clk 0:00:37]} 29. Re1 {[%clk 0:00:19]}  Rd2 {[%clk 0:00:36]} 30. Re2 {[%clk 0:00:19]}  Rd1+ {[%clk 0:00:36]} 31. Re1 {[%clk 0:00:20]}  Rd5 {[%clk 0:00:32]} 32. g4 {[%clk 0:00:15]}  Nd2+ {[%clk 0:00:19]} 33. Ke2 {[%clk 0:00:14]}  Nf3 {[%clk 0:00:16]} 34. Rd1 {[%clk 0:00:09]}  Re5+ {[%clk 0:00:15]} 35. Kf2 {[%clk 0:00:08]}  Nxg1 {[%clk 0:00:14]} 36. Rxg1 {[%clk 0:00:09]}  Rc5 {[%clk 0:00:11]} 37. c3 {[%clk 0:00:09]}  Rb5 {[%clk 0:00:11]} 38. b4 {[%clk 0:00:08]}  Rd5 {[%clk 0:00:10]} 39. Ke2 {[%clk 0:00:07]}  Ke4 {[%clk 0:00:10]} 40. Rd1 {[%clk 0:00:05]}  Rxd1 {[%clk 0:00:08]} 41. Kxd1 {[%clk 0:00:06]}  Kd3 {[%clk 0:00:09]} 42. a4 {[%clk 0:00:05]}  Kxc3 {[%clk 0:00:08]} 43. b5 {[%clk 0:00:04]}  Kb4 {[%clk 0:00:08]} 44. b6 {[%clk 0:00:05]}  axb6 {[%clk 0:00:07]} 45. a5 {[%clk 0:00:05]}  bxa5 {[%clk 0:00:07]} 46. g5 {[%clk 0:00:05]}  a4 {[%clk 0:00:07]} 47. h4 {[%clk 0:00:06]}  a3 {[%clk 0:00:07]} 48. h5 {[%clk 0:00:07]}  Kc4 {[%clk 0:00:05]} 49. Kc2 {[%clk 0:00:03]}  Kd5 {[%clk 0:00:04]} 50. Kb3 {[%clk 0:00:03]}  Ke5 {[%clk 0:00:04]} 51. g6 {[%clk 0:00:04]}  hxg6 {[%clk 0:00:01]} 52. hxg6 {[%clk 0:00:05]}  f5 {[%clk 0:00:02]} 53. Kxa3 {[%clk 0:00:06]}  Kf4 {[%clk 0:00:02]} 54. Kb2 {[%clk 0:00:07]}  Ke3 {[%clk 0:00:02]} 55. Kc2 {[%clk 0:00:08]}  Ke2 {[%clk 0:00:03]} 56. Kc3 {[%clk 0:00:09]}  f4 {[%clk 0:00:04]} 57. Kc4 {[%clk 0:00:10]}  f3 {[%clk 0:00:05]} 58. Kd5 {[%clk 0:00:11]}  f2 {[%clk 0:00:06]} 59. Ke6 {[%clk 0:00:11]}  f1=Q {[%clk 0:00:06]} 60. Ke7 {[%clk 0:00:11]}  Qf6+ {[%clk 0:00:06]} 61. Ke8 {[%clk 0:00:11]}  Qxg6+ {[%clk 0:00:07]} 62. Kf8 {[%clk 0:00:12]}  Qf6+ {[%clk 0:00:07]} 63. Kg8 {[%clk 0:00:13]}  g5 {[%clk 0:00:08]} 64. Kh7 {[%clk 0:00:14]}  g4 {[%clk 0:00:09]} 65. Kg8 {[%clk 0:00:14]}  g3 {[%clk 0:00:10]} 66. Kh7 {[%clk 0:00:15]}  g2 {[%clk 0:00:11]} 67. Kg8 {[%clk 0:00:15]}  g1=Q+ {[%clk 0:00:12]} 68. Kh7 {[%clk 0:00:16]}  Qgg7# {[%clk 0:00:11]} 0-1


[Site "https://www.chess.com"]

[Event "Titled Tuesday Blitz April 25 Late 2023"]
[White "Grinev, Valeriy"]
[Black "Melikhov, Evgeny V."]
[WhiteFideId "14117517"]
[BlackFideId "4122046"]
[WhiteElo "2366"]
[BlackElo "2158"]
[Result "1-0"]
[Round "05"]
[TimeControl "180+2"]
[Date "2023.04.25"]
[WhiteClock "0:01:29"]
[BlackClock "0:00:11"]

1. e4 {[%clk 0:03:00]}  e5 {[%clk 0:02:59]} 2. Nc3 {[%clk 0:03:01]}  Nf6 {[%clk 0:02:59]} 3. Nf3 {[%clk 0:03:02]}  Nc6 {[%clk 0:02:58]} 4. Bc4 {[%clk 0:03:02]}  Be7 {[%clk 0:02:50]} 5. d3 {[%clk 0:02:58]}  d6 {[%clk 0:02:48]} 6. h3 {[%clk 0:02:58]}  Be6 {[%clk 0:02:41]} 7. Bb3 {[%clk 0:02:55]}  Nd4 {[%clk 0:02:21]} 8. Nxd4 {[%clk 0:02:53]}  exd4 {[%clk 0:02:21]} 9. Ne2 {[%clk 0:02:54]}  Bxb3 {[%clk 0:02:09]} 10. axb3 {[%clk 0:02:54]}  c5 {[%clk 0:02:08]} 11. O-O {[%clk 0:02:52]}  O-O {[%clk 0:02:08]} 12. f4 {[%clk 0:02:52]}  Nd7 {[%clk 0:02:05]} 13. Bd2 {[%clk 0:02:50]}  f5 {[%clk 0:01:56]} 14. exf5 {[%clk 0:02:46]}  Rxf5 {[%clk 0:01:55]} 15. g4 {[%clk 0:02:47]}  Rf7 {[%clk 0:01:46]} 16. Ng3 {[%clk 0:02:48]}  g6 {[%clk 0:01:36]} 17. Qf3 {[%clk 0:02:48]}  Bh4 {[%clk 0:01:32]} 18. Ne4 {[%clk 0:02:44]}  d5 {[%clk 0:01:28]} 19. Nd6 {[%clk 0:02:38]}  Re7 {[%clk 0:01:13]} 20. Qxd5+ {[%clk 0:02:37]}  Kg7 {[%clk 0:01:12]} 21. Nxb7 {[%clk 0:02:33]}  Qc7 {[%clk 0:01:05]} 22. Nxc5 {[%clk 0:02:29]}  Qxc5 {[%clk 0:00:53]} 23. Qxa8 {[%clk 0:02:26]}  Qxc2 {[%clk 0:00:53]} 24. Qg2 {[%clk 0:02:21]}  Qxd3 {[%clk 0:00:51]} 25. Rae1 {[%clk 0:02:12]}  Bxe1 {[%clk 0:00:50]} 26. Rxe1 {[%clk 0:02:10]}  Rxe1+ {[%clk 0:00:48]} 27. Bxe1 {[%clk 0:02:11]}  Qe3+ {[%clk 0:00:42]} 28. Qf2 {[%clk 0:02:11]}  Nc5 {[%clk 0:00:39]} 29. Qxe3 {[%clk 0:02:10]}  dxe3 {[%clk 0:00:39]} 30. Bc3+ {[%clk 0:02:05]}  Kf7 {[%clk 0:00:38]} 31. Bd4 {[%clk 0:02:03]}  Nxb3 {[%clk 0:00:34]} 32. Bxa7 {[%clk 0:01:59]}  e2 {[%clk 0:00:30]} 33. Kf2 {[%clk 0:01:58]}  Nc1 {[%clk 0:00:30]} 34. Be3 {[%clk 0:01:53]}  Nd3+ {[%clk 0:00:29]} 35. Kxe2 {[%clk 0:01:54]}  Nxb2 {[%clk 0:00:30]} 36. Kf3 {[%clk 0:01:53]}  Nc4 {[%clk 0:00:30]} 37. Bd4 {[%clk 0:01:53]}  Nd6 {[%clk 0:00:30]} 38. Be5 {[%clk 0:01:51]}  Nc4 {[%clk 0:00:29]} 39. Ke4 {[%clk 0:01:48]}  Ke6 {[%clk 0:00:29]} 40. f5+ {[%clk 0:01:48]}  gxf5+ {[%clk 0:00:29]} 41. gxf5+ {[%clk 0:01:49]}  Kf7 {[%clk 0:00:30]} 42. Bd4 {[%clk 0:01:46]}  Nd6+ {[%clk 0:00:30]} 43. Kf4 {[%clk 0:01:45]}  Nc4 {[%clk 0:00:29]} 44. Kg5 {[%clk 0:01:44]}  Nd6 {[%clk 0:00:28]} 45. h4 {[%clk 0:01:43]}  h6+ {[%clk 0:00:26]} 46. Kg4 {[%clk 0:01:38]}  Ne4 {[%clk 0:00:23]} 47. Be5 {[%clk 0:01:36]}  Nc5 {[%clk 0:00:16]} 48. Kh5 {[%clk 0:01:34]}  Nd7 {[%clk 0:00:14]} 49. Bd4 {[%clk 0:01:33]}  Nf6+ {[%clk 0:00:11]} 50. Bxf6 {[%clk 0:01:30]}  Kxf6 {[%clk 0:00:11]} 51. Kxh6 {[%clk 0:01:29]} 1-0


[Site "https://www.chess.com"]

[Event "Titled Tuesday Blitz April 25 Late 2023"]
[White "O`Gorman, Tom"]
[Black "Osmonbekov, Talaibek"]
[WhiteFideId "2508249"]
[BlackFideId "2017253"]
[WhiteElo "2271"]
[BlackElo "2135"]
[Result "1-0"]
[Round "05"]
[TimeControl "180+2"]
[Date "2023.04.25"]
[WhiteClock "0:01:14"]
[BlackClock "0:00:03"]

1. c4 {[%clk 0:03:00]}  e5 {[%clk 0:02:58]} 2. Nc3 {[%clk 0:02:59]}  d6 {[%clk 0:02:59]} 3. g3 {[%clk 0:02:58]}  f5 {[%clk 0:02:59]} 4. Bg2 {[%clk 0:02:58]}  Nf6 {[%clk 0:02:59]} 5. Nf3 {[%clk 0:02:56]}  Be7 {[%clk 0:02:53]} 6. d4 {[%clk 0:02:55]}  e4 {[%clk 0:02:52]} 7. Nh4 {[%clk 0:02:55]}  c6 {[%clk 0:02:48]} 8. O-O {[%clk 0:02:53]}  O-O {[%clk 0:02:48]} 9. f3 {[%clk 0:02:52]}  d5 {[%clk 0:02:47]} 10. cxd5 {[%clk 0:02:53]}  cxd5 {[%clk 0:02:48]} 11. fxe4 {[%clk 0:02:44]}  fxe4 {[%clk 0:02:48]} 12. Nf5 {[%clk 0:02:42]}  Bxf5 {[%clk 0:02:27]} 13. Rxf5 {[%clk 0:02:43]}  Qd7 {[%clk 0:02:27]} 14. Rf1 {[%clk 0:02:39]}  Nc6 {[%clk 0:02:27]} 15. Bg5 {[%clk 0:02:37]}  h6 {[%clk 0:02:20]} 16. Bxf6 {[%clk 0:02:36]}  Bxf6 {[%clk 0:02:20]} 17. e3 {[%clk 0:02:37]}  Bg5 {[%clk 0:02:11]} 18. Qe2 {[%clk 0:02:35]}  Nb4 {[%clk 0:02:06]} 19. h4 {[%clk 0:02:32]}  Be7 {[%clk 0:02:03]} 20. Qb5 {[%clk 0:02:10]}  Qxb5 {[%clk 0:02:02]} 21. Nxb5 {[%clk 0:02:10]}  a6 {[%clk 0:02:03]} 22. Nc3 {[%clk 0:02:08]}  Rad8 {[%clk 0:01:58]} 23. Rxf8+ {[%clk 0:02:04]}  Kxf8 {[%clk 0:01:56]} 24. Rf1+ {[%clk 0:02:01]}  Ke8 {[%clk 0:01:56]} 25. Bh3 {[%clk 0:01:56]}  Nd3 {[%clk 0:01:36]} 26. Be6 {[%clk 0:01:55]}  Nb4 {[%clk 0:01:03]} 27. a3 {[%clk 0:01:46]}  Nc2 {[%clk 0:01:03]} 28. Nxd5 {[%clk 0:01:44]}  Rd6 {[%clk 0:00:58]} 29. Bf7+ {[%clk 0:01:32]}  Kd8 {[%clk 0:00:54]} 30. Rc1 {[%clk 0:01:30]}  Nxe3 {[%clk 0:00:38]} 31. Nxe3 {[%clk 0:01:29]}  Rxd4 {[%clk 0:00:39]} 32. Rd1 {[%clk 0:01:26]}  Bc5 {[%clk 0:00:29]} 33. Rxd4+ {[%clk 0:01:25]}  Bxd4 {[%clk 0:00:29]} 34. Kf2 {[%clk 0:01:25]}  Bxb2 {[%clk 0:00:29]} 35. a4 {[%clk 0:01:26]}  b5 {[%clk 0:00:29]} 36. axb5 {[%clk 0:01:26]}  axb5 {[%clk 0:00:29]} 37. Bd5 {[%clk 0:01:27]}  b4 {[%clk 0:00:25]} 38. Bxe4 {[%clk 0:01:22]}  b3 {[%clk 0:00:23]} 39. Bd5 {[%clk 0:01:21]}  Bd4 {[%clk 0:00:19]} 40. Bxb3 {[%clk 0:01:21]}  Ke7 {[%clk 0:00:19]} 41. Kf3 {[%clk 0:01:22]}  Kf8 {[%clk 0:00:17]} 42. Nf5 {[%clk 0:01:22]}  Ba1 {[%clk 0:00:15]} 43. Kg4 {[%clk 0:01:21]}  Bb2 {[%clk 0:00:15]} 44. Kh5 {[%clk 0:01:21]}  Ba1 {[%clk 0:00:16]} 45. Kg6 {[%clk 0:01:21]}  Bb2 {[%clk 0:00:16]} 46. Ne3 {[%clk 0:01:16]}  Ba1 {[%clk 0:00:16]} 47. Nd5 {[%clk 0:01:16]}  Be5 {[%clk 0:00:15]} 48. Nf4 {[%clk 0:01:15]}  Ba1 {[%clk 0:00:09]} 49. Ne6+ {[%clk 0:01:14]}  Kg8 {[%clk 0:00:04]} 50. Nxg7+ {[%clk 0:01:15]}  Kh8 {[%clk 0:00:04]} 51. Nf5 {[%clk 0:01:15]}  Be5 {[%clk 0:00:03]} 52. g4 {[%clk 0:01:14]} 1-0


[Site "https://www.chess.com"]